bitfinex/quotes_ETHUSD_20240614
["timestamp","ask_amount","ask_price","bid_price","bid_amount"]
[1718332643980,7.45,3494.6,3493.9,2.65244514]
[1718332644157,7.45,3494.6,3494.5,0.669]
[1718332644474,7.45,3495.3,3494.5,1.219]
[1718332644634,0.98981,3495.3,3494.0,1.43344514]
[1718332644833,0.669,3495.3,3494.3,0.669]
[1718332645037,2.3378,3495.2,3494.4,0.17110021]
[1718332645535,0.669,3495.1,3494.2,0.669]
[1718332645735,2.3458,3495.8,3494.8,0.669]
[1718332646086,2.3458,3495.7,3494.9,0.17087604]
[1718332646237,2.3458,3495.5,3494.9,0.17087604]
[1718332646573,0.669,3495.4,3494.5,0.669]
[1718332646935,0.669,3495.2,3494.6,0.17101053]
[1718332647135,2.2725,3495.1,3494.6,0.17101053]
[1718332647385,2.2725,3495.1,3494.2,0.669]
[1718332647903,2.2725,3495.1,3494.3,0.17114505]
[1718332648179,2.2725,3495.1,3494.2,0.669]
[1718332648533,2.2725,3495.1,3494.3,0.17114505]
[1718332648958,2.56665,3495.1,3493.5,5.2825]
[1718332649158,0.669,3495.0,3493.6,4.98344514]
[1718332649447,0.669,3495.0,3494.0,0.669]
[1718332649646,2.56665,3495.1,3494.1,0.17079588]
[1718332649940,0.925665,3495.0,3494.1,0.17079588]
[1718332650367,0.669,3495.0,3494.1,0.17079588]
[1718332651155,2.2725,3495.1,3494.2,0.669]
[1718332651570,2.2725,3495.1,3494.4,0.669]
[1718332655982,2.2725,3495.1,3493.6,1.98344514]
[1718332656277,2.2725,3495.1,3494.2,0.669]
[1718332656447,2.56665,3495.1,3494.3,0.55]
[1718332657299,2.2725,3495.1,3494.3,0.55]
[1718332660816,2.2725,3495.1,3494.3,1.219]
[1718332661120,2.2725,3495.1,3494.3,0.55]
[1718332661586,2.9415,3495.1,3494.3,0.55]
[1718332662489,0.669,3494.7,3493.6,1.43344514]
[1718332662821,2.4626,3494.6,3493.7,0.17029456]
[1718332662985,0.669,3494.5,3493.7,0.83929456]
[1718332663298,2.4626,3494.6,3493.7,0.17029456]
[1718332663502,2.4626,3494.6,3493.7,0.83929456]
[1718332663685,2.4626,3494.6,3493.7,1.08090298]
[1718332664239,2.4626,3494.6,3493.8,0.55]
[1718332664385,2.4626,3494.6,3493.9,0.17020484]
[1718332673448,3.0,3495.2,3494.0,2.95693803]
[1718332673449,2.3117,3495.2,3494.0,2.95693803]
[1718332673745,0.669,3495.1,3494.1,1.40766191]
[1718332673945,0.669,3495.1,3494.2,0.55]
[1718332674145,2.3117,3495.2,3494.2,0.55]
[1718332674351,0.669,3495.1,3494.3,0.17025378]
[1718332674646,7.45,3495.3,3494.3,1.26425504]
[1718332677957,0.669,3495.4,3494.3,1.26425504]
[1718332678172,2.2667,3495.5,3494.5,0.669]
[1718332678369,2.9357,3495.5,3494.5,0.669]
[1718332678551,2.9357,3495.5,3494.6,0.71992676]
[1718332678952,2.2667,3495.5,3494.6,0.71992676]
[1718332679270,2.9357,3495.5,3494.6,0.71992676]
[1718332680372,2.2667,3495.5,3494.6,0.71992676]
[1718332681057,0.669,3495.6,3494.7,2.4669]
[1718332681257,2.451,3495.8,3494.8,0.38558268]
[1718332681569,0.669,3495.7,3494.9,0.16979227]
[1718332681771,2.451,3495.8,3494.9,0.16979227]
[1718332681950,0.669,3495.7,3494.9,0.16979227]
[1718332684394,0.1202487,3495.9,3494.9,0.16979227]
[1718332684573,0.1202487,3495.9,3495.7,0.669]
[1718332684971,0.1202487,3495.9,3495.8,0.16912928]
[1718332685399,0.1202487,3495.9,3495.8,0.669]
[1718332685600,0.1202487,3495.9,3495.8,0.16911585]
[1718332685894,0.1202487,3495.9,3495.8,0.669]
[1718332686100,0.1202487,3495.9,3495.8,0.83781604]
[1718332687261,0.1202487,3495.9,3495.8,2.27126118]
[1718332687471,0.1202487,3495.9,3495.8,3.0483873]
[1718332688102,0.1202487,3495.9,3495.8,5.4644873]
[1718332688968,0.1202487,3495.9,3495.8,6.3974873]
[1718332689406,0.1202487,3495.9,3495.8,9.3974873]
[1718332690502,0.1202487,3495.9,3495.8,5.81204216]
[1718332690718,0.1202487,3495.9,3495.8,3.39594216]
[1718332690894,0.1202487,3495.9,3495.8,0.39594216]
[1718332691227,0.1202487,3495.9,3495.8,0.16881604]
[1718332691586,0.1202487,3495.9,3495.1,5.2895]
[1718332691910,0.1202487,3495.9,3495.2,1.60124612]
[1718332692121,0.1202487,3495.9,3495.2,3.16780098]
[1718332692277,0.1202487,3495.9,3495.2,0.16780098]
[1718332692473,0.1202487,3495.9,3495.3,0.58264285]
[1718332692710,0.1202487,3495.9,3495.4,0.1660076]
[1718332693301,0.1202487,3495.9,3495.0,0.3691275]
[1718332693613,0.1202487,3495.9,3495.5,0.1660834]
[1718332693818,0.1202487,3495.9,3495.0,0.3691275]
[1718332694178,0.1202487,3495.9,3495.1,0.16626267]
[1718332694476,0.1202487,3495.9,3495.1,0.51980169]
[1718332694988,0.1202487,3495.9,3495.1,0.16626267]
[1718332695191,0.1202487,3495.9,3494.5,1.602]
[1718332695406,0.1202487,3495.9,3494.6,1.43344514]
[1718332695609,0.1202487,3495.9,3494.6,5.15002578]
[1718332696116,2.3247,3495.8,3494.6,5.15002578]
[1718332696327,2.3247,3495.8,3494.7,0.67520258]
[1718332696686,2.3247,3495.8,3494.8,0.16658034]
[1718332697784,2.3247,3495.8,3494.8,1.60002548]
[1718332698033,2.3247,3495.8,3494.9,0.55]
[1718332698391,2.3247,3495.8,3495.0,0.16649069]
[1718332698612,2.3247,3495.8,3495.1,0.51499358]
[1718332698904,2.3247,3495.8,3495.2,0.16640104]
[1718332699287,0.1202487,3495.9,3495.2,0.16640104]
[1718332699504,0.1202487,3495.9,3495.3,0.55]
[1718332699720,0.1202487,3495.9,3495.3,0.71635622]
[1718332700081,0.1202487,3495.9,3495.4,1.43344514]
[1718332700405,0.1202487,3495.9,3495.5,0.93693675]
[1718332700611,0.1202487,3495.9,3495.5,2.42759061]
[1718332702124,0.1202487,3495.9,3495.6,1.43344514]
[1718332702280,0.1202487,3495.9,3495.7,0.55]
[1718332702486,0.1202487,3495.9,3495.8,1.59941199]
[1718332702797,0.1202487,3495.9,3495.8,2.38642333]
[1718332704021,0.1202487,3495.9,3495.8,0.95297819]
[1718332704186,0.1202487,3495.9,3495.8,0.16596685]
[1718332704386,0.1202487,3495.9,3495.5,0.22070144]
[1718332704688,0.1202487,3495.9,3495.6,0.55]
[1718332704886,0.1202487,3495.9,3495.7,0.16602059]
[1718332705817,0.1202487,3495.9,3494.9,1.602]
[1718332706129,0.1202487,3495.9,3495.0,1.65699056]
[1718332706438,0.1202487,3495.9,3495.0,4.59977944]
[1718332706654,0.1202487,3495.9,3495.1,0.97738456]
[1718332706952,0.1202487,3495.9,3495.2,2.14968979]
[1718332707136,0.1202487,3495.9,3495.3,4.00720422]
[1718332707346,0.1202487,3495.9,3495.4,1.98344514]
[1718332707529,0.1202487,3495.9,3495.4,5.14960016]
[1718332707729,0.1202487,3495.9,3495.5,1.20996002]
[1718332707918,0.1202487,3495.9,3495.6,1.98344514]
[1718332708119,0.1202487,3495.9,3495.6,2.14951054]
[1718332710858,0.1202487,3495.9,3495.7,1.602]
[1718332711028,0.1202487,3495.9,3495.8,1.98344514]
[1718332711230,0.1202487,3495.9,3495.8,6.00056798]
[1718332711427,0.1202487,3495.9,3495.8,8.43936798]
[1718332711954,4.45,3496.9,3496.2,2.86022]
[1718332712255,2.3585,3498.4,3496.8,1.602]
[1718332712256,4.45,3497.6,3496.8,1.602]
[1718332712561,4.45,3498.3,3496.9,2.14892823]
[1718332712775,4.45,3498.3,3497.0,0.61897282]
[1718332712776,0.23585,3498.3,3497.0,0.61897282]
[1718332712973,0.23585,3498.3,3497.1,1.98344514]
[1718332713250,0.23585,3498.3,3497.1,2.14883868]
[1718332713462,0.23585,3498.3,3497.1,0.71539354]
[1718332714229,3.23585,3498.3,3497.1,0.71539354]
[1718332715836,3.23585,3498.3,3497.1,0.55]
[1718332716036,0.559435,3498.2,3497.2,0.16534877]
[1718332716358,0.559435,3498.2,3497.0,2.3037]
[1718332716535,0.559435,3498.2,3497.3,0.16475924]
[1718332716736,0.559435,3498.2,3497.0,3.73714514]
[1718332716951,0.559435,3498.2,3497.4,0.16471447]
[1718332717153,0.6153785,3498.1,3497.1,0.55]
[1718332717458,0.6153785,3498.1,3497.5,0.16466971]
[1718332717626,0.6153785,3498.1,3497.1,0.55]
[1718332717827,0.6153785,3498.1,3497.6,0.16462495]
[1718332718039,0.6153785,3498.1,3497.1,0.55]
[1718332718256,0.6153785,3498.1,3497.7,0.16458019]
[1718332718562,0.38512285,3498.0,3497.8,0.16453544]
[1718332718761,0.38512285,3498.0,3497.1,0.55]
[1718332719075,0.38512285,3498.0,3497.9,0.16449069]
[1718332719226,0.38512285,3498.0,3497.1,0.55]
[1718332719563,0.38512285,3498.0,3497.2,0.16480401]
[1718332721490,0.6153785,3498.1,3497.2,0.16480401]
[1718332735219,3.0,3498.3,3497.2,0.16480401]
[1718332735414,2.3585,3498.4,3497.3,2.3722]
[1718332735825,2.3585,3498.4,3497.4,0.16403568]
[1718332741971,2.86419016,3498.7,3497.5,0.05718105]
[1718332742180,2.3699,3498.7,3497.5,0.80934167]
[1718332742388,2.3699,3498.7,3497.6,0.16382566]
[1718332742535,2.3699,3498.7,3497.5,0.80934167]
[1718332742736,3.80334514,3498.7,3497.6,0.31815417]
[1718332742935,0.667,3498.5,3497.6,0.667]
[1718332743193,0.667,3498.5,3497.3,2.3722]
[1718332743366,0.667,3498.5,3497.5,0.667]
[1718332743570,2.86415371,3498.7,3497.7,0.667]
[1718332743752,2.3699,3498.7,3497.7,0.667]
[1718332743949,5.3699,3498.7,3497.7,0.667]
[1718332744179,1.43344514,3498.6,3497.7,0.667]
[1718332744349,0.667,3498.4,3497.4,0.667]
[1718332744678,0.667,3498.4,3497.8,0.16373615]
[1718332744974,0.667,3498.4,3497.4,0.667]
[1718332745287,0.667,3498.4,3497.9,0.1636914]
[1718332745439,0.25947154,3498.3,3497.1,3.0]
[1718332745638,0.667,3498.4,3498.0,0.16364665]
[1718332745838,0.667,3498.4,3497.5,0.667]
[1718332746178,0.667,3498.4,3497.1,3.0]
[1718332746385,0.25947154,3498.3,3497.4,0.667]
[1718332746540,0.667,3498.0,3497.0,2.4056]
[1718332746741,2.4021,3498.2,3497.1,0.16404948]
[1718332746742,0.667,3497.6,3497.1,0.16404948]
[1718332746954,0.667,3497.6,3497.1,0.42101443]
[1718332748858,4.0041,3498.2,3497.1,0.42101443]
[1718332749059,0.142,3497.1,3496.6,2.4375]
[1718332749280,0.142,3497.1,3496.7,0.55]
[1718332750655,0.142,3497.1,3496.6,2.4375]
[1718332750877,0.142,3497.1,3496.6,2.68125]
[1718332751582,0.142,3497.1,3496.6,0.24375]
[1718332751791,0.142,3497.1,3496.2,2.4771]
[1718332752857,2.4034,3497.0,3495.5,2.2815]
[1718332753053,2.4034,3497.0,3495.6,1.43344514]
[1718332753257,2.4034,3497.0,3495.7,0.55]
[1718332753484,2.4034,3497.0,3495.8,1.43344514]
[1718332753687,2.4034,3497.0,3495.9,1.04834451]
[1718332755763,0.142,3497.1,3496.0,2.283]
[1718332759476,0.142,3497.1,3496.1,0.15929465]
[1718332763188,2.3102,3497.0,3496.1,0.15929465]
[1718332763575,2.3102,3497.0,3495.9,1.04834451]
[1718332763798,2.3102,3497.0,3496.0,0.40768746]
[1718332765678,2.3102,3497.0,3496.0,0.1595085]
[1718332765880,2.3102,3497.0,3495.5,3.0]
[1718332766088,2.3102,3497.0,3496.1,0.1594637]
[1718332766287,2.3102,3497.0,3495.6,1.98344514]
[1718332766902,2.3102,3497.0,3495.7,0.15964291]
[1718332767101,0.24522,3496.9,3495.8,1.06430881]
[1718332767283,0.24522,3496.9,3495.8,4.06430881]
[1718332767486,0.24522,3496.9,3495.9,0.1595533]
[1718332769292,2.4369,3496.8,3495.9,0.1595533]
[1718332770921,0.668,3496.6,3495.9,0.1595533]
[1718332771123,0.668,3496.6,3496.0,0.21429984]
[1718332771476,0.668,3496.6,3496.1,0.1594637]
[1718332773273,0.668,3496.6,3495.8,0.55]
[1718332773469,0.668,3496.6,3496.2,0.15941891]
[1718332773710,0.668,3496.6,3495.7,0.55]
[1718332773872,0.668,3496.6,3496.3,0.15937412]
[1718332774071,0.668,3496.6,3495.8,0.36418]
[1718332774713,0.668,3496.6,3495.9,0.1595533]
[1718332775375,2.4369,3496.8,3495.9,0.1595533]
[1718332775577,0.668,3496.6,3495.9,0.1595533]
[1718332776104,0.668,3496.6,3495.9,0.57610663]
[1718332781822,2.4369,3496.8,3495.9,0.57610663]
[1718332781987,0.668,3496.7,3495.9,0.57610663]
[1718332782933,0.142,3497.1,3496.0,2.2585]
[1718332783087,0.142,3497.1,3496.0,3.4765]
[1718332783289,0.142,3497.1,3496.1,0.56489344]
[1718332783612,0.668,3496.9,3496.1,0.56489344]
[1718332787328,0.142,3497.1,3496.2,1.43344514]
[1718332787640,0.142,3497.1,3496.3,0.70941862]
[1718332787789,0.142,3497.1,3496.3,0.76661388]
[1718332787992,0.142,3497.1,3496.4,0.32733197]
[1718332788244,0.142,3497.1,3496.5,0.15932905]
[1718332788998,0.142,3497.1,3496.6,2.37]
[1718332789332,0.142,3497.1,3496.6,2.52928426]
[1718332796447,0.142,3497.1,3496.6,3.19728426]
[1718332796744,0.142,3497.1,3496.7,0.35246162]
[1718332797048,0.142,3497.1,3496.8,0.1591947]
[1718332797235,0.142,3497.1,3496.7,0.35246162]
[1718332797552,0.142,3497.1,3496.9,0.15914992]
[1718332797754,0.142,3497.1,3496.8,0.1591947]
[1718332797935,0.142,3497.1,3497.0,0.15910515]
[1718332798138,0.142,3497.1,3496.9,0.15914992]
[1718332798318,0.142,3497.1,3497.0,0.15910515]
[1718332798742,0.142,3497.1,3496.8,0.35496563]
[1718332799048,0.142,3497.1,3496.9,0.15914992]
[1718332801141,0.142,3497.1,3497.0,0.668]
[1718332801449,0.142,3497.1,3497.0,3.68280941]
[1718332801628,0.142,3497.1,3497.0,4.45174175]
[1718332803307,0.142,3497.1,3497.0,5.88518689]
[1718332807324,0.142,3497.1,3497.0,5.21718689]
[1718332807522,0.142,3497.1,3497.0,5.88518689]
[1718332810570,2.3005,3498.3,3497.0,5.88518689]
[1718332810864,2.3005,3498.3,3497.5,0.668]
[1718332811236,2.3005,3498.3,3497.6,0.1581426]
[1718332814179,2.9685,3498.3,3497.6,0.1581426]
[1718332814579,2.9685,3498.3,3497.2,0.668]
[1718332814763,2.9685,3498.3,3497.7,0.15787101]
[1718332814963,3.26535,3498.3,3497.1,3.62401525]
[1718332815190,2.9685,3498.3,3497.8,0.15782626]
[1718332815382,2.9685,3498.3,3497.3,0.668]
[1718332815890,2.9685,3498.3,3497.4,0.15800529]
[1718332816456,2.9685,3498.3,3497.3,0.668]
[1718332816785,2.9685,3498.3,3497.5,0.15796053]
[1718332816986,2.9685,3498.3,3497.4,0.15800529]
[1718332817191,2.9685,3498.3,3497.6,0.15791577]
[1718332817368,2.9685,3498.3,3497.5,0.15796053]
[1718332817564,2.9685,3498.3,3497.7,0.15787101]
[1718332817779,2.9685,3498.3,3497.6,0.15791577]
[1718332817975,2.9685,3498.3,3497.8,0.15782626]
[1718332818158,2.9685,3498.3,3497.7,0.15787101]
[1718332818360,2.9685,3498.3,3497.3,0.668]
[1718332818562,2.9685,3498.3,3497.8,0.15782626]
[1718332818761,2.9685,3498.3,3497.4,0.42920153]
[1718332818981,2.3005,3498.3,3497.4,0.42920153]
[1718332819186,2.9685,3498.3,3497.5,0.15796053]
[1718332819371,2.9695244,3500.3,3497.5,0.15796053]
[1718332819372,2.4768,3499.2,3498.3,2.3063]
[1718332819572,2.4768,3499.2,3498.4,0.29743]
[1718332819907,2.4768,3499.2,3498.3,0.668]
[1718332820229,2.4768,3499.2,3498.5,0.15756641]
[1718332820356,2.4768,3499.2,3498.5,0.668]
[1718332820570,2.4768,3499.2,3498.1,0.05716483]
[1718332820871,2.4768,3499.2,3498.5,0.668]
[1718332821070,2.4768,3499.2,3498.2,1.59114577]
[1718332821273,2.4768,3499.2,3498.6,0.15752168]
[1718332821594,2.4768,3499.2,3498.5,0.668]
[1718332821766,2.4768,3499.2,3498.7,0.15747695]
[1718332821961,2.4768,3499.2,3498.6,0.15752168]
[1718332822162,2.4768,3499.2,3498.8,0.15743222]
[1718332822506,2.4768,3499.2,3498.5,0.668]
[1718332822811,2.4768,3499.2,3498.9,0.15702735]
[1718332822976,2.4768,3499.2,3498.5,0.91711897]
[1718332823359,0.1202487,3499.3,3498.7,3.017]
[1718332823565,0.1202487,3499.3,3498.8,0.60715913]
[1718332823771,0.1202487,3499.3,3498.8,0.76423121]
[1718332824002,0.1202487,3499.3,3498.9,0.52146764]
[1718332824319,0.1202487,3499.3,3499.0,0.15660919]
[1718332824598,0.1202487,3499.3,3499.0,0.82460919]
[1718332825575,0.1202487,3499.3,3499.0,0.15660919]
[1718332828168,0.1202487,3499.3,3498.7,2.349]
[1718332828374,0.1202487,3499.3,3499.1,0.15656447]
[1718332828567,0.1202487,3499.3,3498.5,0.24911897]
[1718332828803,2.6155487,3499.3,3499.2,0.15651975]
[1718332829020,2.6155487,3499.3,3498.0,2.3864]
[1718332829217,0.668,3499.1,3498.2,0.53864]
[1718332829427,0.668,3498.9,3498.3,0.15692231]
[1718332829630,0.1202487,3499.3,3497.3,2.3864]
[1718332829631,0.668,3498.7,3497.3,2.3864]
[1718332829830,0.668,3498.7,3498.4,0.15673534]
[1718332830130,2.4513,3498.8,3497.8,0.668]
[1718332830345,3.1193,3498.8,3497.9,0.668]
[1718332830487,2.4513,3498.8,3497.9,0.82495906]
[1718332830682,2.4513,3498.8,3498.1,0.668]
[1718332830892,2.4513,3498.8,3498.0,0.15691431]
[1718332831217,2.4513,3498.8,3498.1,0.15686956]
[1718332831385,2.4513,3498.8,3498.1,0.668]
[1718332831582,2.4513,3498.8,3498.2,0.18648156]
[1718332831786,2.4513,3498.8,3498.1,0.668]
[1718332832089,2.4513,3498.8,3498.2,0.18648156]
[1718332832299,2.4513,3498.8,3498.1,0.668]
[1718332832503,2.4513,3498.8,3498.3,0.18643598]
[1718332832704,2.4513,3498.8,3498.1,0.668]
[1718332833502,2.4513,3498.8,3498.2,0.18648156]
[1718332833823,2.4513,3498.8,3498.1,0.668]
[1718332833984,2.4513,3498.8,3498.2,0.18664159]
[1718332834181,2.4513,3498.8,3498.1,0.668]
[1718332834530,2.4513,3498.8,3498.2,0.18664159]
[1718332834732,2.4513,3498.8,3498.1,0.668]
[1718332835017,2.4513,3498.8,3498.2,0.18664159]
[1718332835197,2.4513,3498.8,3498.1,0.668]
[1718332835396,2.4513,3498.8,3498.2,0.18663714]
[1718332835601,2.4513,3498.8,3498.1,0.668]
[1718332835837,2.4513,3498.8,3498.2,0.18663714]
[1718332836121,2.4513,3498.8,3498.1,0.668]
[1718332836285,2.4513,3498.8,3498.3,0.18658712]
[1718332836481,2.4513,3498.8,3498.1,0.668]
[1718332836681,2.4513,3498.8,3498.4,0.18654154]
[1718332836913,2.4513,3498.8,3498.1,0.668]
[1718332837117,2.4513,3498.8,3498.5,0.18649596]
[1718332837324,2.4513,3498.8,3498.1,0.668]
[1718332837804,2.4513,3498.8,3498.2,0.18661047]
[1718332838034,0.668,3498.3,3496.9,3.06345633]
[1718332838191,3.76984514,3498.7,3496.9,3.06345633]
[1718332838192,0.668,3498.1,3496.9,3.90254514]
[1718332838524,0.668,3498.1,3497.2,0.668]
[1718332838930,0.668,3498.4,3497.4,0.668]
[1718332839118,1.55678451,3498.4,3497.4,0.668]
[1718332839490,1.55678451,3498.4,3497.0,3.0]
[1718332839691,1.55678451,3498.4,3497.4,0.668]
[1718332840011,0.88878451,3498.4,3497.1,0.55]
[1718332840207,0.88878451,3498.4,3497.4,0.668]
[1718332840208,1.55678451,3498.4,3497.4,0.668]
[1718332840528,1.55678451,3498.4,3497.0,0.55]
[1718332840529,0.88878451,3498.4,3497.6,0.668]
[1718332840707,3.0044,3498.6,3497.6,0.668]
[1718332841322,3.0044,3498.6,3497.8,0.668]
[1718332841323,2.3364,3498.6,3497.8,0.668]
[1718332842469,3.0044,3498.6,3497.6,0.668]
[1718332842749,3.0044,3498.6,3497.7,0.55]
[1718332842944,4.081033,3498.6,3497.7,0.55]
[1718332845653,0.668,3498.4,3497.0,5.4615]
[1718332845862,0.668,3498.4,3497.4,0.668]
[1718332846553,2.4104,3498.3,3497.4,0.668]
[1718332847961,0.668,3498.0,3497.0,0.668]
[1718332848654,0.24104,3498.2,3497.0,0.668]
[1718332848876,0.668,3498.0,3497.0,0.668]
[1718332849337,0.668,3498.0,3497.1,0.18740102]
[1718332849729,0.668,3497.8,3497.1,0.18740102]
[1718332849928,0.668,3497.8,3496.8,0.668]
[1718332850156,0.668,3497.8,3497.2,0.1874399]
[1718332850361,0.668,3497.8,3496.8,0.668]
[1718332850519,0.668,3497.4,3497.3,0.18739874]
[1718332850721,0.668,3497.4,3496.1,0.44728582]
[1718332850722,1.12479451,3497.4,3496.4,0.668]
[1718332850952,1.12479451,3497.4,3497.3,0.18739874]
[1718332850953,0.668,3497.4,3497.3,0.18739874]
[1718332851144,2.4665,3497.6,3496.4,0.668]
[1718332851363,0.668,3497.5,3497.3,0.18739874]
[1718332851535,0.668,3497.5,3496.6,0.668]
[1718332851856,0.668,3497.5,3496.4,0.668]
[1718332852058,0.668,3497.5,3496.7,0.18777028]
[1718332852262,0.668,3497.5,3496.4,0.668]
[1718332852760,0.668,3497.5,3496.5,0.18786153]
[1718332852964,2.4665,3497.6,3496.5,0.18786153]
[1718332853324,2.4665,3497.6,3495.9,3.0]
[1718332853645,2.4665,3497.6,3496.0,2.74664514]
[1718332853817,2.4665,3497.6,3496.1,3.18804406]
[1718332854020,2.4665,3497.6,3496.2,0.60719694]
[1718332854251,2.4665,3497.6,3496.3,1.62139793]
[1718332854419,2.4665,3497.6,3496.4,0.55]
[1718332854618,2.4665,3497.6,3496.5,0.40500132]
[1718332855257,2.2652,3497.5,3496.5,0.40500132]
[1718332855551,2.2652,3497.5,3496.5,0.18786153]
[1718332855757,2.2652,3497.5,3496.2,0.05720063]
[1718332855957,2.2652,3497.5,3496.6,0.1878159]
[1718332856164,2.2652,3497.5,3496.1,0.05719756]
[1718332856357,2.2652,3497.5,3496.7,0.18821501]
[1718332856583,0.22652,3497.4,3496.2,0.60719757]
[1718332856780,2.2652,3497.5,3496.8,0.18816939]
[1718332856927,2.2652,3497.5,3496.2,0.60719757]
[1718332857348,2.2652,3497.5,3496.3,0.24559511]
[1718332858222,2.2652,3497.5,3496.3,0.18839753]
[1718332861927,2.2652,3497.5,3496.4,4.327242]
[1718332862129,2.2652,3497.5,3496.5,3.45156395]
[1718332862327,2.2652,3497.5,3496.6,1.98344514]
[1718332862555,2.2652,3497.5,3496.6,2.17188371]
[1718332862739,2.2652,3497.5,3496.7,0.05718721]
[1718332862944,2.2652,3497.5,3496.8,0.60718721]
[1718332863145,2.2652,3497.5,3496.9,0.22290253]
[1718332863383,2.2652,3497.5,3496.9,0.41120424]
[1718332865467,2.3079,3497.9,3497.0,4.43323216]
[1718332865674,2.3079,3497.9,3497.1,3.0]
[1718332865843,4.45,3498.0,3497.2,1.98344514]
[1718332866043,4.45,3498.0,3497.3,0.05717513]
[1718332866257,12.38,3499.0,3497.4,1.98344514]
[1718332866258,4.45,3498.7,3497.4,1.98344514]
[1718332866466,2.3079,3498.7,3497.5,2.72764745]
[1718332866634,2.3079,3498.7,3497.6,3.55]
[1718332866829,2.3079,3498.7,3497.7,1.62106171]
[1718332867031,2.3079,3498.7,3497.8,0.60717086]
[1718332867240,2.3079,3498.7,3497.9,0.71011739]
[1718332867443,2.3079,3498.7,3497.9,0.76728825]
[1718332870682,4.45,3499.1,3498.0,1.98344514]
[1718332870683,6.9274,3499.1,3498.0,1.98344514]
[1718332870919,6.9274,3499.1,3498.1,0.05716648]
[1718332871056,2.4774,3499.1,3498.2,0.5750729]
[1718332871448,2.4774,3499.1,3498.3,0.18711178]
[1718332876760,2.4774,3499.1,3497.6,3.0]
[1718332876958,0.667,3498.8,3498.4,0.1870662]
[1718332877160,0.667,3498.5,3497.6,3.0]
[1718332877397,2.4577,3498.2,3497.3,0.667]
[1718332877559,0.667,3498.3,3497.3,2.10044514]
[1718332877764,0.667,3498.5,3497.5,0.667]
[1718332877992,0.667,3498.5,3497.5,0.87704451]
[1718332878491,0.667,3498.5,3497.5,0.21004451]
[1718332878991,4.45,3498.6,3497.5,0.21004451]
[1718332879375,4.45,3498.6,3497.6,0.18691068]
[1718332882897,2.4577,3498.7,3497.6,0.18691068]
[1718332883096,0.24577,3498.6,3497.6,0.18691068]
[1718332884000,1.67921514,3498.6,3497.6,0.18691068]
[1718332884210,2.2986,3498.5,3497.6,0.18691068]
[1718332884566,2.2986,3498.5,3496.8,2.4206]
[1718332884762,2.2986,3498.5,3496.9,1.98344514]
[1718332885079,0.55788151,3498.4,3496.9,2.60525345]
[1718332886011,0.55788151,3498.4,3497.0,3.0]
[1718332886308,0.55788151,3498.4,3497.1,0.60718422]
[1718332886470,2.2986,3498.5,3497.1,0.78849679]
[1718332886666,2.2986,3498.5,3497.1,0.73131257]
[1718332888306,2.2986,3498.5,3495.2,0.59435633]
[1718332888307,2.2978,3497.2,3495.2,0.59435633]
[1718332888509,2.2978,3497.2,3494.8,2.3618]
[1718332888510,4.612,3497.0,3494.8,3.84769083]
[1718332888804,4.612,3497.0,3495.1,0.42950424]
[1718332888805,5.45046965,3496.9,3495.1,0.42950424]
[1718332888966,2.43946965,3496.9,3495.1,0.42950424]
[1718332889362,2.43946965,3496.9,3495.1,1.86294938]
[1718332890189,2.43946965,3496.9,3495.2,1.49065917]
[1718332890190,1.00602451,3496.9,3495.2,1.49065917]
[1718332890503,1.00602451,3496.9,3495.3,0.0572106]
[1718332890715,0.26070245,3496.8,3495.4,0.192016]
[1718332890865,0.26070245,3496.8,3495.5,0.05721057]
[1718332891061,0.26070245,3496.8,3495.4,0.192016]
[1718332891868,0.26070245,3496.8,3495.5,0.05721063]
[1718332892399,0.26070245,3496.8,3495.4,0.192016]
[1718332892604,0.2867727,3496.7,3495.4,0.192016]
[1718332892808,0.2867727,3496.7,3495.5,0.05721058]
[1718332895176,2.3844,3496.6,3495.4,0.192016]
[1718332895701,3.9854,3496.6,3495.4,0.192016]
[1718332895871,3.9854,3496.6,3495.5,0.16374995]
[1718332914942,0.668,3495.9,3495.5,0.16374995]
[1718332915330,0.668,3495.9,3495.3,1.43344514]
[1718332915525,0.668,3495.9,3495.6,0.16518019]
[1718332915731,0.668,3495.9,3495.4,0.55]
[1718332915932,0.668,3495.9,3495.7,0.16513454]
[1718332916239,0.668,3495.9,3495.8,0.16508889]
[1718332916648,0.668,3495.9,3494.9,3.0]
[1718332916873,0.668,3495.3,3494.4,2.77350998]
[1718332917065,0.668,3495.3,3495.0,0.16011553]
[1718332917440,0.668,3495.3,3494.5,1.43344514]
[1718332917677,0.668,3494.9,3493.6,2.326]
[1718332917971,0.668,3494.9,3494.6,0.16029822]
[1718332918171,0.668,3494.9,3494.0,0.668]
[1718332918329,0.668,3494.9,3494.1,1.43344514]
[1718332918528,0.668,3494.9,3494.2,0.16048095]
[1718332918742,0.668,3494.9,3494.3,1.43344514]
[1718332918929,2.4856,3495.4,3494.4,0.16038958]
[1718332919137,0.40896,3495.3,3494.4,0.16038958]
[1718332920493,2.4856,3495.4,3494.5,0.60722688]
[1718332920638,2.4856,3495.4,3494.5,0.55]
[1718332920839,2.4856,3495.4,3494.6,0.16029822]
[1718332922451,2.4856,3495.4,3494.6,0.21752261]
[1718332923267,4.37369026,3496.3,3494.7,1.43344514]
[1718332923268,2.3887,3495.8,3494.7,1.43344514]
[1718332923512,4.604,3496.3,3494.8,0.82731633]
[1718332923513,2.3887,3496.2,3494.8,0.82731633]
[1718332923685,2.3887,3496.2,3494.9,1.43344514]
[1718332923863,2.3887,3496.2,3495.0,0.55]
[1718332924038,2.3887,3496.2,3495.1,1.43344514]
[1718332924239,2.3887,3496.2,3495.2,0.7100242]